[Event "Late-Titled-Tuesday-Blitz-October-10-2023"]
[Site "Chess.com"]
[Date "2023.10.10"]
[Round "2"]
[White "NLLO777"]
[Black "GianmarcoVaR"]
[Result "0-1"]
[WhiteElo "2379"]
[BlackElo "2679"]
[TimeControl "180+1"]
[EndTime "14:17:22 PDT"]
[Termination "GianmarcoVaR won by resignation"]

1. d4 {[%clk 0:03:00]} 1... Nf6 {[%clk 0:01:52.7]} 2. c4 {[%clk 0:02:54.8]} 2...
e6 {[%clk 0:01:50.7]} 3. Nf3 {[%clk 0:02:54.6]} 3... d5 {[%clk 0:01:49.7]} 4. g3
{[%clk 0:02:54.5]} 4... Bb4+ {[%clk 0:01:49]} 5. Bd2 {[%clk 0:02:54.3]} 5... Be7
{[%clk 0:01:49]} 6. Bg2 {[%clk 0:02:54.7]} 6... O-O {[%clk 0:01:49.7]} 7. O-O
{[%clk 0:02:55.2]} 7... c6 {[%clk 0:01:50.3]} 8. Qc2 {[%clk 0:02:54.9]} 8...
Nbd7 {[%clk 0:01:50.6]} 9. Rd1 {[%clk 0:02:52.5]} 9... b6 {[%clk 0:01:45.8]} 10.
b3 {[%clk 0:02:51.7]} 10... Ba6 {[%clk 0:01:39.2]} 11. Bf4 {[%clk 0:02:48.8]}
11... Rc8 {[%clk 0:01:37]} 12. Nbd2 {[%clk 0:02:45.5]} 12... c5 {[%clk
0:01:36.2]} 13. dxc5 {[%clk 0:02:44]} 13... Bxc5 {[%clk 0:01:32]} 14. Qb2 {[%clk
0:02:39.8]} 14... Qe7 {[%clk 0:01:31.1]} 15. Rac1 {[%clk 0:02:28.2]} 15... Ba3
{[%clk 0:01:30.5]} 16. Qa1 {[%clk 0:02:16.5]} 16... Bxc1 {[%clk 0:01:17.8]} 17.
Rxc1 {[%clk 0:02:17.4]} 17... dxc4 {[%clk 0:01:18.4]} 18. Nxc4 {[%clk
0:02:16.3]} 18... Bxc4 {[%clk 0:01:18.5]} 19. bxc4 {[%clk 0:02:16.1]} 19... Rfe8
{[%clk 0:01:02.7]} 20. Ne5 {[%clk 0:02:13.4]} 20... Nxe5 {[%clk 0:00:57.6]} 21.
Bxe5 {[%clk 0:02:13.2]} 21... Red8 {[%clk 0:00:57.5]} 22. Bf3 {[%clk 0:02:02]}
22... Ne8 {[%clk 0:00:52.4]} 23. Qb2 {[%clk 0:01:56.1]} 23... Rc5 {[%clk
0:00:48.4]} 24. Bd4 {[%clk 0:01:45.3]} 24... Rc7 {[%clk 0:00:48.6]} 25. Be5
{[%clk 0:01:42.2]} 25... Rcd7 {[%clk 0:00:49.1]} 26. Kg2 {[%clk 0:01:40.9]}
26... Qc5 {[%clk 0:00:43.9]} 27. h4 {[%clk 0:01:27.4]} 27... Rd2 {[%clk
0:00:33.1]} 28. Qa1 {[%clk 0:01:22.2]} 28... Qa3 {[%clk 0:00:29.5]} 29. Rc3
{[%clk 0:00:56]} 29... Qxa2 {[%clk 0:00:24.2]} 30. Qc1 {[%clk 0:00:56.6]} 30...
Qa5 {[%clk 0:00:16.2]} 31. Bf4 {[%clk 0:00:53]} 31... Rd1 {[%clk 0:00:16.5]} 32.
Qb2 {[%clk 0:00:49.6]} 32... Qa1 {[%clk 0:00:15.8]} 33. Qb4 {[%clk 0:00:40.8]}
33... Rh1 {[%clk 0:00:14.1]} 34. Rc1 {[%clk 0:00:15.4]} 34... Rxc1 {[%clk
0:00:13.2]} 35. Qe7 {[%clk 0:00:15.4]} 35... Rcd1 {[%clk 0:00:08.9]} 36. e3
{[%clk 0:00:14]} 36... R1d7 {[%clk 0:00:07.8]} 0-1

[Event "Late-Titled-Tuesday-Blitz-October-10-2023"]
[Site "Chess.com"]
[Date "2023.10.10"]
[Round "2"]
[White "Zhigalko_Sergei"]
[Black "feuervogel1000000"]
[Result "0-1"]
[WhiteElo "2890"]
[BlackElo "2595"]
[TimeControl "180+1"]
[EndTime "14:17:24 PDT"]
[Termination "feuervogel1000000 won on time"]

1. e4 {[%clk 0:03:00.9]} 1... e5 {[%clk 0:02:59.5]} 2. Nf3 {[%clk 0:03:00.9]}
2... Nc6 {[%clk 0:02:59.1]} 3. Bc4 {[%clk 0:03:00.1]} 3... Bc5 {[%clk
0:02:57.9]} 4. b4 {[%clk 0:02:59.8]} 4... Bxb4 {[%clk 0:02:57.6]} 5. c3 {[%clk
0:02:59.9]} 5... Be7 {[%clk 0:02:57]} 6. d4 {[%clk 0:02:59.8]} 6... Na5 {[%clk
0:02:56.7]} 7. Bd3 {[%clk 0:03:00.2]} 7... d6 {[%clk 0:02:56.2]} 8. dxe5 {[%clk
0:03:00.7]} 8... dxe5 {[%clk 0:02:57.1]} 9. Nxe5 {[%clk 0:03:01.4]} 9... Nf6
{[%clk 0:02:57.3]} 10. O-O {[%clk 0:03:01.3]} 10... O-O {[%clk 0:02:57]} 11. Qc2
{[%clk 0:03:01.6]} 11... Bd6 {[%clk 0:02:40.4]} 12. Nf3 {[%clk 0:02:56.1]} 12...
Bg4 {[%clk 0:02:39]} 13. Nbd2 {[%clk 0:02:19.3]} 13... Nc6 {[%clk 0:02:36.5]}
14. Rb1 {[%clk 0:02:14.9]} 14... b6 {[%clk 0:02:24.3]} 15. h3 {[%clk 0:01:43.7]}
15... Bh5 {[%clk 0:02:22.7]} 16. Re1 {[%clk 0:01:44.1]} 16... Nd7 {[%clk
0:02:16.5]} 17. e5 {[%clk 0:01:38]} 17... Ncxe5 {[%clk 0:02:12.1]} 18. Nxe5
{[%clk 0:01:38.9]} 18... Nxe5 {[%clk 0:02:11.9]} 19. Bxh7+ {[%clk 0:01:39.8]}
19... Kh8 {[%clk 0:02:12.1]} 20. Be4 {[%clk 0:01:32.4]} 20... Bg6 {[%clk
0:02:03.9]} 21. Nf1 {[%clk 0:01:27.3]} 21... Qh4 {[%clk 0:01:58.4]} 22. Ng3
{[%clk 0:01:02.1]} 22... Rae8 {[%clk 0:01:52.9]} 23. Bd2 {[%clk 0:00:56.5]}
23... Bc5 {[%clk 0:01:47.7]} 24. Be3 {[%clk 0:00:47]} 24... Bxe3 {[%clk
0:01:38.4]} 25. Rxe3 {[%clk 0:00:46.5]} 25... Nc4 {[%clk 0:01:35.4]} 26. Ree1
{[%clk 0:00:14.3]} 26... Na3 {[%clk 0:01:32.7]} 27. Qc1 {[%clk 0:00:14.1]} 27...
Nxb1 {[%clk 0:01:31.5]} 28. Qxb1 {[%clk 0:00:15]} 28... Bxe4 {[%clk 0:01:29]}
29. Nxe4 {[%clk 0:00:15.9]} 29... f5 {[%clk 0:01:27]} 30. Nd2 {[%clk 0:00:13.5]}
30... Rxe1+ {[%clk 0:01:26.8]} 31. Qxe1 {[%clk 0:00:14.4]} 31... Rd8 {[%clk
0:01:27.2]} 32. Nf3 {[%clk 0:00:14.4]} 32... Qf6 {[%clk 0:01:26.7]} 33. Ne5
{[%clk 0:00:14.1]} 33... Re8 {[%clk 0:01:25.6]} 34. f4 {[%clk 0:00:13.7]} 34...
g5 {[%clk 0:01:24.6]} 35. Qg3 {[%clk 0:00:13.2]} 35... Qg7 {[%clk 0:01:02.8]}
36. Nf3 {[%clk 0:00:09.4]} 36... g4 {[%clk 0:01:02.5]} 37. Ne5 {[%clk
0:00:05.2]} 37... Kg8 {[%clk 0:00:39.5]} 38. hxg4 {[%clk 0:00:04.4]} 38... fxg4
{[%clk 0:00:39.9]} 39. c4 {[%clk 0:00:04]} 39... Rd8 {[%clk 0:00:39.4]} 40. c5
{[%clk 0:00:03.7]} 40... bxc5 {[%clk 0:00:39.2]} 41. Qb3+ {[%clk 0:00:03.6]}
41... Kf8 {[%clk 0:00:37.6]} 42. Qc2 {[%clk 0:00:02.4]} 42... Qf6 {[%clk
0:00:33.6]} 43. Qxc5+ {[%clk 0:00:02.3]} 43... Qd6 {[%clk 0:00:33]} 0-1

[Event "Late-Titled-Tuesday-Blitz-October-10-2023"]
[Site "Chess.com"]
[Date "2023.10.10"]
[Round "2"]
[White "SaqoChess_Twitch"]
[Black "egnfanclub"]
[Result "1-0"]
[WhiteElo "2620"]
[BlackElo "2369"]
[TimeControl "180+1"]
[EndTime "14:17:26 PDT"]
[Termination "SaqoChess_Twitch won on time"]

1. d4 {[%clk 0:03:00.9]} 1... d5 {[%clk 0:02:57.7]} 2. c4 {[%clk 0:03:01.4]}
2... c6 {[%clk 0:02:57.2]} 3. Nc3 {[%clk 0:03:02]} 3... Nf6 {[%clk 0:02:52.6]}
4. e3 {[%clk 0:03:02.6]} 4... e6 {[%clk 0:02:52.4]} 5. Nf3 {[%clk 0:03:03.1]}
5... Nbd7 {[%clk 0:02:52.3]} 6. Bd3 {[%clk 0:03:03.7]} 6... dxc4 {[%clk
0:02:52]} 7. Bxc4 {[%clk 0:03:03.2]} 7... b5 {[%clk 0:02:52.9]} 8. Bd3 {[%clk
0:03:03.7]} 8... a6 {[%clk 0:02:53.1]} 9. e4 {[%clk 0:03:04.3]} 9... c5 {[%clk
0:02:53]} 10. e5 {[%clk 0:03:05]} 10... cxd4 {[%clk 0:02:50.8]} 11. Nxb5 {[%clk
0:03:05.2]} 11... axb5 {[%clk 0:02:50.3]} 12. exf6 {[%clk 0:03:06.1]} 12... gxf6
{[%clk 0:02:48.1]} 13. O-O {[%clk 0:03:06.2]} 13... Qb6 {[%clk 0:02:47.5]} 14.
b4 {[%clk 0:03:05.1]} 14... Bb7 {[%clk 0:02:40.9]} 15. Qe2 {[%clk 0:03:03.6]}
15... Rg8 {[%clk 0:02:30.1]} 16. Bxb5 {[%clk 0:02:55.6]} 16... Bd6 {[%clk
0:01:41.1]} 17. Rd1 {[%clk 0:02:44.5]} 17... Rd8 {[%clk 0:01:11.5]} 18. g3
{[%clk 0:02:32.1]} 18... Rg4 {[%clk 0:01:01]} 19. Bb2 {[%clk 0:02:05.6]} 19...
Re4 {[%clk 0:00:40.2]} 20. Qd3 {[%clk 0:01:58.1]} 20... Be5 {[%clk 0:00:38.5]}
21. Nxe5 {[%clk 0:01:56.5]} 21... fxe5 {[%clk 0:00:35.3]} 22. Re1 {[%clk
0:01:54]} 22... f5 {[%clk 0:00:31.3]} 23. Rxe4 {[%clk 0:01:54.1]} 23... Bxe4
{[%clk 0:00:30.4]} 24. Qe2 {[%clk 0:01:53.9]} 24... Qb7 {[%clk 0:00:23.2]} 25.
Qh5+ {[%clk 0:01:48.8]} 25... Ke7 {[%clk 0:00:23.7]} 26. Qxh7+ {[%clk
0:01:47.2]} 26... Kd6 {[%clk 0:00:24.3]} 27. Bf1 {[%clk 0:01:24.7]} 27... Qxb4
{[%clk 0:00:19.5]} 28. Bc1 {[%clk 0:01:23.6]} 28... Qc3 {[%clk 0:00:18.1]} 29.
Bg5 {[%clk 0:01:05.4]} 29... Qf3 {[%clk 0:00:17.8]} 30. Qe7+ {[%clk 0:00:57.8]}
30... Kd5 {[%clk 0:00:18.1]} 31. Bc4+ {[%clk 0:00:40.5]} 31... Kxc4 {[%clk
0:00:18.5]} 32. Rc1+ {[%clk 0:00:41.2]} 32... Kd5 {[%clk 0:00:11.5]} 33. Kf1
{[%clk 0:00:29.8]} 33... Qh1+ {[%clk 0:00:09.2]} 34. Ke2 {[%clk 0:00:30.1]}
34... d3+ {[%clk 0:00:08.8]} 35. Kd2 {[%clk 0:00:27]} 35... Qf3 {[%clk 0:00:07]}
36. Qxd8 {[%clk 0:00:20.5]} 36... Qxf2+ {[%clk 0:00:06.8]} 37. Kc3 {[%clk
0:00:20.6]} 37... Qd4+ {[%clk 0:00:05.4]} 38. Kb3 {[%clk 0:00:19]} 38... Kd6
{[%clk 0:00:02.3]} 39. Be7+ {[%clk 0:00:18.2]} 1-0

[Event "Late-Titled-Tuesday-Blitz-October-10-2023"]
[Site "Chess.com"]
[Date "2023.10.10"]
[Round "2"]
[White "Binary010"]
[Black "pedromartinez91"]
[Result "1-0"]
[WhiteElo "2833"]
[BlackElo "2547"]
[TimeControl "180+1"]
[EndTime "14:17:28 PDT"]
[Termination "Binary010 won by checkmate"]

1. e4 {[%clk 0:03:00.9]} 1... d5 {[%clk 0:02:59.3]} 2. exd5 {[%clk 0:03:01]}
2... Qxd5 {[%clk 0:03:00.2]} 3. Nc3 {[%clk 0:03:01.2]} 3... Qd8 {[%clk
0:03:00.4]} 4. d4 {[%clk 0:03:01.3]} 4... Nf6 {[%clk 0:03:00.1]} 5. Nf3 {[%clk
0:03:01.7]} 5... g6 {[%clk 0:03:00.5]} 6. h3 {[%clk 0:02:45.6]} 6... Bg7 {[%clk
0:03:00.6]} 7. Bc4 {[%clk 0:02:46.3]} 7... Bf8 {[%clk 0:03:01.5]} 8. O-O {[%clk
0:02:41.8]} 8... Bg7 {[%clk 0:03:01.6]} 9. Re1 {[%clk 0:02:40.5]} 9... O-O
{[%clk 0:03:02.5]} 10. Bf4 {[%clk 0:02:40.5]} 10... a6 {[%clk 0:02:59.2]} 11. a4
{[%clk 0:02:39.7]} 11... Nc6 {[%clk 0:02:58.7]} 12. d5 {[%clk 0:02:36.6]} 12...
Nb4 {[%clk 0:02:55.9]} 13. a5 {[%clk 0:02:30.2]} 13... c6 {[%clk 0:02:55.6]} 14.
d6 {[%clk 0:02:26.3]} 14... e6 {[%clk 0:02:47.5]} 15. Qd2 {[%clk 0:02:09.8]}
15... Nbd5 {[%clk 0:02:47.1]} 16. Bh2 {[%clk 0:02:08.2]} 16... Nxc3 {[%clk
0:02:40.9]} 17. bxc3 {[%clk 0:02:09.1]} 17... Nd5 {[%clk 0:02:39.7]} 18. Ra3
{[%clk 0:01:54.7]} 18... Bd7 {[%clk 0:02:20.6]} 19. Ba2 {[%clk 0:01:52.2]} 19...
b5 {[%clk 0:02:01.1]} 20. axb6 {[%clk 0:01:45.6]} 20... Qxb6 {[%clk 0:01:59.5]}
21. c4 {[%clk 0:01:26.8]} 21... Qb4 {[%clk 0:01:33.4]} 22. Qxb4 {[%clk
0:01:13.1]} 22... Nxb4 {[%clk 0:01:34.3]} 23. Bb3 {[%clk 0:01:12.6]} 23... f6
{[%clk 0:01:19.8]} 24. c5 {[%clk 0:00:58.6]} 24... Kf7 {[%clk 0:01:08.8]} 25.
Nd4 {[%clk 0:00:54.1]} 25... Rfe8 {[%clk 0:01:03.3]} 26. Ra4 {[%clk 0:00:48.4]}
26... Nd5 {[%clk 0:00:52.4]} 27. Rea1 {[%clk 0:00:48.2]} 27... f5 {[%clk
0:00:51.5]} 28. Bxd5 {[%clk 0:00:24.4]} 28... exd5 {[%clk 0:00:47.1]} 29. c3
{[%clk 0:00:24.6]} 29... Reb8 {[%clk 0:00:10.1]} 30. Bf4 {[%clk 0:00:22.6]}
30... Rb7 {[%clk 0:00:04.9]} 31. Rxa6 {[%clk 0:00:22.5]} 31... Rxa6 {[%clk
0:00:05]} 32. Rxa6 {[%clk 0:00:23.4]} 32... Bf6 {[%clk 0:00:04.6]} 33. Nxc6
{[%clk 0:00:19.1]} 33... Bxc3 {[%clk 0:00:04]} 34. Nd8+ {[%clk 0:00:12.1]} 34...
Kf6 {[%clk 0:00:02.4]} 35. Nxb7 {[%clk 0:00:13]} 35... d4 {[%clk 0:00:02.5]} 36.
c6 {[%clk 0:00:12.2]} 36... Be6 {[%clk 0:00:01.2]} 37. d7 {[%clk 0:00:12.4]}
37... g5 {[%clk 0:00:02.1]} 38. d8=Q+ {[%clk 0:00:12.7]} 38... Kg6 {[%clk
0:00:02.5]} 39. Qxg5+ {[%clk 0:00:12.4]} 39... Kf7 {[%clk 0:00:02.6]} 40. Nd6+
{[%clk 0:00:12.9]} 40... Kf8 {[%clk 0:00:02.8]} 41. Ra8+ {[%clk 0:00:13.3]}
41... Bc8 {[%clk 0:00:02.6]} 42. Rxc8# {[%clk 0:00:13.7]} 1-0

[Event "Late-Titled-Tuesday-Blitz-October-10-2023"]
[Site "Chess.com"]
[Date "2023.10.10"]
[Round "2"]
[White "Freefresh"]
[Black "Atanejhad"]
[Result "1-0"]
[WhiteElo "2753"]
[BlackElo "2382"]
[TimeControl "180+1"]
[EndTime "14:17:28 PDT"]
[Termination "Freefresh won by resignation"]

1. g4 {[%clk 0:02:54.8]} 1... h5 {[%clk 0:02:56]} 2. g5 {[%clk 0:02:51.3]} 2...
e6 {[%clk 0:02:55.4]} 3. h4 {[%clk 0:02:51.3]} 3... d5 {[%clk 0:02:52.7]} 4. Bg2
{[%clk 0:02:48.8]} 4... g6 {[%clk 0:02:52.8]} 5. d4 {[%clk 0:02:45]} 5... Bg7
{[%clk 0:02:53.2]} 6. Bf4 {[%clk 0:02:44.6]} 6... Ne7 {[%clk 0:02:53]} 7. Nf3
{[%clk 0:02:43.9]} 7... c5 {[%clk 0:02:52.4]} 8. Be5 {[%clk 0:02:39.9]} 8...
Bxe5 {[%clk 0:02:49.3]} 9. dxe5 {[%clk 0:02:40.8]} 9... Nbc6 {[%clk 0:02:47.2]}
10. Qd2 {[%clk 0:02:38.3]} 10... b5 {[%clk 0:02:33.6]} 11. Qf4 {[%clk
0:02:36.8]} 11... Nf5 {[%clk 0:02:31.8]} 12. Nbd2 {[%clk 0:02:34.5]} 12... Bb7
{[%clk 0:02:26]} 13. c3 {[%clk 0:02:31]} 13... Qb6 {[%clk 0:02:09]} 14. e4
{[%clk 0:02:28.1]} 14... dxe4 {[%clk 0:02:08.3]} 15. Nxe4 {[%clk 0:02:25.1]}
15... O-O-O {[%clk 0:02:07.9]} 16. Nd6+ {[%clk 0:02:07]} 16... Nxd6 {[%clk
0:02:03]} 17. exd6 {[%clk 0:02:07.9]} 17... Rd7 {[%clk 0:01:57.6]} 18. O-O
{[%clk 0:01:53.8]} 18... Kb8 {[%clk 0:01:51]} 19. Rad1 {[%clk 0:01:43.8]} 19...
Rhd8 {[%clk 0:01:48.6]} 20. Rd2 {[%clk 0:01:39.7]} 20... c4 {[%clk 0:01:34.4]}
21. Rfd1 {[%clk 0:01:39.2]} 21... Qc5 {[%clk 0:01:33.2]} 22. b4 {[%clk 0:01:18]}
22... cxb3 {[%clk 0:01:32]} 23. axb3 {[%clk 0:01:18.9]} 23... Qxc3 {[%clk
0:01:04.5]} 24. Rd3 {[%clk 0:01:17.1]} 24... Qb4 {[%clk 0:00:51.8]} 25. Nd4
{[%clk 0:00:58.9]} 25... Nxd4 {[%clk 0:00:42.4]} 26. Rxd4 {[%clk 0:00:59.8]}
26... Qc5 {[%clk 0:00:42]} 27. Qd2 {[%clk 0:00:38.2]} 27... Bxg2 {[%clk
0:00:38.2]} 28. Kxg2 {[%clk 0:00:39.1]} 28... Qc6+ {[%clk 0:00:31.6]} 29. f3
{[%clk 0:00:38.1]} 29... Rc8 {[%clk 0:00:27.6]} 30. Qa5 {[%clk 0:00:35.3]} 30...
Qb6 {[%clk 0:00:25.8]} 31. Qxb6+ {[%clk 0:00:28.9]} 31... axb6 {[%clk
0:00:26.7]} 32. Kg3 {[%clk 0:00:26.5]} 32... Rc5 {[%clk 0:00:26.4]} 33. b4
{[%clk 0:00:21.6]} 33... Rc4 {[%clk 0:00:23]} 34. Rf4 {[%clk 0:00:18.4]} 34...
e5 {[%clk 0:00:19.4]} 35. Re4 {[%clk 0:00:17.2]} 35... Rxb4 {[%clk 0:00:18.5]}
36. Rxb4 {[%clk 0:00:14.9]} 36... Kb7 {[%clk 0:00:18]} 37. Rxb5 {[%clk
0:00:15.5]} 37... Kc6 {[%clk 0:00:18.3]} 38. Rxe5 {[%clk 0:00:16.1]} 1-0

[Event "Late-Titled-Tuesday-Blitz-October-10-2023"]
[Site "Chess.com"]
[Date "2023.10.10"]
[Round "2"]
[White "Xqswdc"]
[Black "Artyom_ChessMate"]
[Result "1-0"]
[WhiteElo "2336"]
[BlackElo "2500"]
[TimeControl "180+1"]
[EndTime "14:17:29 PDT"]
[Termination "Xqswdc won by resignation"]

1. e4 {[%clk 0:03:00.9]} 1... Nf6 {[%clk 0:02:57.2]} 2. e5 {[%clk 0:03:01]} 2...
Nd5 {[%clk 0:02:57.6]} 3. d4 {[%clk 0:03:01.7]} 3... d6 {[%clk 0:02:57.6]} 4. c4
{[%clk 0:03:02]} 4... Nb6 {[%clk 0:02:57.6]} 5. exd6 {[%clk 0:03:02.4]} 5...
exd6 {[%clk 0:02:56.9]} 6. Nf3 {[%clk 0:03:00.1]} 6... Be7 {[%clk 0:02:57.3]} 7.
h3 {[%clk 0:02:59.9]} 7... O-O {[%clk 0:02:57.2]} 8. Bd3 {[%clk 0:03:00.1]} 8...
Bf6 {[%clk 0:02:57.7]} 9. O-O {[%clk 0:02:59.8]} 9... Re8 {[%clk 0:02:58.2]} 10.
Nc3 {[%clk 0:02:54.4]} 10... Nc6 {[%clk 0:02:57.7]} 11. b3 {[%clk 0:02:46.3]}
11... Nxd4 {[%clk 0:02:54.6]} 12. Nxd4 {[%clk 0:02:47.2]} 12... Bxd4 {[%clk
0:02:55.5]} 13. Bxh7+ {[%clk 0:02:47.6]} 13... Kxh7 {[%clk 0:02:56.4]} 14. Qxd4
{[%clk 0:02:47.3]} 14... Bf5 {[%clk 0:02:55.5]} 15. Bb2 {[%clk 0:02:42.6]} 15...
Qg5 {[%clk 0:02:52.3]} 16. f4 {[%clk 0:02:22.8]} 16... Qg6 {[%clk 0:02:48.6]}
17. Rf3 {[%clk 0:01:52.7]} 17... Nd7 {[%clk 0:02:44.1]} 18. Nd5 {[%clk
0:01:48.1]} 18... Re4 {[%clk 0:02:39.7]} 19. Qc3 {[%clk 0:01:40.8]} 19... f6
{[%clk 0:02:18.2]} 20. Nxc7 {[%clk 0:01:26.5]} 20... Rc8 {[%clk 0:02:17.6]} 21.
Nd5 {[%clk 0:01:24.6]} 21... Nc5 {[%clk 0:02:17.9]} 22. Rg3 {[%clk 0:01:21.9]}
22... Qf7 {[%clk 0:02:15.2]} 23. Rxg7+ {[%clk 0:01:03.3]} 23... Kxg7 {[%clk
0:01:49.9]} 24. Nxf6 {[%clk 0:01:03.3]} 24... Kh6 {[%clk 0:01:32.8]} 25. Qg3
{[%clk 0:00:46.6]} 25... Qg6 {[%clk 0:00:40]} 26. Qh4+ {[%clk 0:00:43.5]} 26...
Kg7 {[%clk 0:00:38.5]} 27. Nxe4+ {[%clk 0:00:42.8]} 27... Kf7 {[%clk 0:00:36.1]}
28. Ng5+ {[%clk 0:00:30]} 28... Ke8 {[%clk 0:00:35.9]} 29. Re1+ {[%clk
0:00:23.3]} 29... Kd7 {[%clk 0:00:36.1]} 30. Nf3 {[%clk 0:00:16.1]} 30... Nd3
{[%clk 0:00:20.5]} 31. Qe7+ {[%clk 0:00:15.7]} 31... Kc6 {[%clk 0:00:19.1]} 32.
Nd4+ {[%clk 0:00:16]} 32... Kb6 {[%clk 0:00:19.3]} 33. Nxf5 {[%clk 0:00:05.5]}
33... Nxe1 {[%clk 0:00:14.9]} 34. Bd4+ {[%clk 0:00:04.5]} 34... Ka6 {[%clk
0:00:14.1]} 35. Qxd6+ {[%clk 0:00:03.6]} 35... Qxd6 {[%clk 0:00:14]} 36. Nxd6
{[%clk 0:00:04.5]} 36... Nd3 {[%clk 0:00:13.2]} 37. Nxc8 {[%clk 0:00:04.5]} 1-0

[Event "Late-Titled-Tuesday-Blitz-October-10-2023"]
[Site "Chess.com"]
[Date "2023.10.10"]
[Round "2"]
[White "maximnovik"]
[Black "canary2016"]
[Result "1-0"]
[WhiteElo "2453"]
[BlackElo "2169"]
[TimeControl "180+1"]
[EndTime "14:17:31 PDT"]
[Termination "maximnovik won on time"]

1. e4 {[%clk 0:03:00]} 1... c5 {[%clk 0:02:58.5]} 2. Nf3 {[%clk 0:02:59.8]} 2...
d6 {[%clk 0:02:58.7]} 3. d4 {[%clk 0:02:59.9]} 3... cxd4 {[%clk 0:02:58.9]} 4.
Nxd4 {[%clk 0:03:00.2]} 4... Nf6 {[%clk 0:02:59.8]} 5. Nc3 {[%clk 0:02:59.9]}
5... Nc6 {[%clk 0:03:00.3]} 6. Be3 {[%clk 0:02:59.4]} 6... e6 {[%clk 0:02:59.8]}
7. f4 {[%clk 0:02:58.2]} 7... Be7 {[%clk 0:02:58.7]} 8. Qf3 {[%clk 0:02:58.3]}
8... O-O {[%clk 0:02:58.6]} 9. O-O-O {[%clk 0:02:58.1]} 9... Bd7 {[%clk
0:02:54.9]} 10. Rg1 {[%clk 0:02:57.7]} 10... Qa5 {[%clk 0:02:54.3]} 11. Nb3
{[%clk 0:02:57.5]} 11... Qc7 {[%clk 0:02:51.8]} 12. g4 {[%clk 0:02:57.6]} 12...
e5 {[%clk 0:02:50.6]} 13. g5 {[%clk 0:02:56.2]} 13... Ne8 {[%clk 0:02:48.9]} 14.
Nd5 {[%clk 0:02:56.1]} 14... Qd8 {[%clk 0:02:46.8]} 15. f5 {[%clk 0:02:56.1]}
15... f6 {[%clk 0:02:35.6]} 16. Bc4 {[%clk 0:02:53.1]} 16... Kh8 {[%clk
0:02:35.3]} 17. g6 {[%clk 0:02:52.3]} 17... h6 {[%clk 0:02:34.6]} 18. Bxh6
{[%clk 0:02:50.6]} 18... gxh6 {[%clk 0:02:34.6]} 19. g7+ {[%clk 0:02:40.2]}
19... Nxg7 {[%clk 0:02:33.2]} 20. Rxg7 {[%clk 0:02:37.6]} 20... Kxg7 {[%clk
0:02:30.9]} 21. Qg4+ {[%clk 0:02:28]} 21... Kh8 {[%clk 0:02:28.7]} 22. Qg6
{[%clk 0:02:27.9]} 22... Rf7 {[%clk 0:02:17.3]} 23. Qxf7 {[%clk 0:02:25.9]}
23... Qf8 {[%clk 0:02:17]} 24. Qg6 {[%clk 0:02:07.2]} 24... Qg7 {[%clk 0:02:17]}
25. Rg1 {[%clk 0:01:49.2]} 25... Qxg6 {[%clk 0:01:56.7]} 26. Rxg6 {[%clk
0:01:48.5]} 26... Kh7 {[%clk 0:01:55.6]} 27. Nxe7 {[%clk 0:01:45.7]} 27... Nxe7
{[%clk 0:01:55.7]} 28. Rxf6 {[%clk 0:01:46]} 28... Re8 {[%clk 0:01:41.5]} 29.
Rxd6 {[%clk 0:01:45.2]} 29... Bc6 {[%clk 0:01:40.3]} 30. Nd2 {[%clk 0:01:27.2]}
30... Nc8 {[%clk 0:01:27.5]} 31. Re6 {[%clk 0:01:26]} 31... Rxe6 {[%clk
0:01:23.8]} 32. fxe6 {[%clk 0:01:18.4]} 32... Kg7 {[%clk 0:01:22.3]} 33. Bd5
{[%clk 0:01:09.5]} 33... Kf6 {[%clk 0:01:18.8]} 34. c4 {[%clk 0:01:08.9]} 34...
Ne7 {[%clk 0:01:14.8]} 35. Kc2 {[%clk 0:01:07.2]} 35... Ng6 {[%clk 0:01:09.6]}
36. Kc3 {[%clk 0:01:06.2]} 36... Nf4 {[%clk 0:01:06.2]} 37. b4 {[%clk
0:01:04.3]} 37... Nxe6 {[%clk 0:01:03.2]} 38. b5 {[%clk 0:00:58.7]} 38... Bxd5
{[%clk 0:00:42.8]} 39. exd5 {[%clk 0:00:58]} 39... Nc5 {[%clk 0:00:43]} 40. Nb3
{[%clk 0:00:58.1]} 40... Ne4+ {[%clk 0:00:24.1]} 41. Kd3 {[%clk 0:00:58]} 41...
Nf2+ {[%clk 0:00:24]} 42. Ke2 {[%clk 0:00:58.1]} 42... Ne4 {[%clk 0:00:21.8]}
43. Ke3 {[%clk 0:00:55.5]} 43... Nc3 {[%clk 0:00:14.6]} 44. Nc5 {[%clk
0:00:48.8]} 44... Nxa2 {[%clk 0:00:07.5]} 45. Nxb7 {[%clk 0:00:43.1]} 45... Ke7
{[%clk 0:00:06.2]} 46. d6+ {[%clk 0:00:42.2]} 46... Kd7 {[%clk 0:00:05.9]} 47.
c5 {[%clk 0:00:42.5]} 47... Nb4 {[%clk 0:00:02.8]} 48. Ke4 {[%clk 0:00:41.4]}
48... Nc2 {[%clk 0:00:01.5]} 49. c6+ {[%clk 0:00:40.5]} 1-0